fUSD/lending_fUSD_20251123
["ID","MTS","AMOUNT","RATE_DAILY","PERIOD"]
[394758833,1763929875242,-500.0,0.00039452,8]
[394758834,1763929875251,-519.83,0.00039452,8]
[394758835,1763929875260,-500.0,0.00039452,8]
[394758836,1763929875270,-500.0,0.00039452,8]
[394758837,1763929875279,-500.0,0.00039452,8]
[394758838,1763929875289,-500.0,0.00039452,8]
[394758839,1763929875300,-500.0,0.00039452,8]
[394758840,1763929875309,-500.0,0.00039452,8]
[394758841,1763929875318,-500.0,0.00039452,8]
[394758842,1763929875327,-538.0,0.00039452,8]
[394758843,1763929875337,-500.0,0.00039452,8]
[394758844,1763929875347,-500.0,0.00039452,8]
[394758845,1763929875357,-500.0,0.00039452,8]
[394758846,1763929875367,-500.0,0.00039452,8]
[394758847,1763929875377,-500.0,0.00039452,8]
[394758848,1763929875387,-764.19,0.00039452,8]
[394758849,1763929875397,-500.0,0.00039452,8]
[394758850,1763929875408,-500.0,0.00039452,8]
[394758851,1763929875417,-500.0,0.00039452,8]
[394758852,1763929875427,-500.0,0.00039452,8]
[394758853,1763929875437,-500.0,0.00039452,8]
[394758854,1763929875447,-500.0,0.00039452,8]
[394758855,1763929875457,-500.0,0.00039452,8]
[394758856,1763929875466,-771.84,0.00039452,8]
[394758857,1763929875476,-500.0,0.00039452,8]
[394758858,1763929875485,-500.0,0.00039452,8]
[394758859,1763929875495,-500.0,0.00039452,8]
[394758860,1763929875504,-500.0,0.00039452,8]
[394758861,1763929875514,-500.0,0.00039452,8]
[394758862,1763929875523,-830.13,0.00039452,8]
[394758863,1763929875534,-1259.23,0.00039452,8]
[394758864,1763929875544,-545.01,0.00039452,8]
[394758865,1763929875553,-500.0,0.00039452,8]
[394758866,1763929875563,-500.0,0.00039452,8]
[394758867,1763929875573,-513.17,0.00039452,8]
[394758868,1763929875582,-500.0,0.00039452,8]
[394758869,1763929875591,-500.0,0.00039452,8]
[394758870,1763929875601,-535.18,0.00039452,8]
[394758871,1763929875610,-500.0,0.00039452,8]
[394758872,1763929875619,-500.0,0.00039452,8]
[394758873,1763929875632,-500.0,0.00039452,8]
[394758874,1763929875641,-500.0,0.00039452,8]
[394758875,1763929875650,-500.0,0.00039452,8]
[394758876,1763929875659,-830.78,0.00039452,8]
[394758877,1763929875670,-6293.43,0.00039452,8]
[394758878,1763929875679,-500.0,0.00039452,8]
[394758879,1763929875688,-500.0,0.00039452,8]
[394758880,1763929875699,-500.0,0.00039452,8]
[394758881,1763929875712,-591.35,0.00039452,8]
[394758882,1763929875721,-500.0,0.00039452,8]
[394758883,1763929875731,-500.0,0.00039452,8]
[394758884,1763929875740,-500.0,0.00039452,8]
[394758885,1763929875749,-1192.17,0.00039452,8]
[394758886,1763929875759,-500.0,0.00039452,8]
[394758887,1763929875768,-500.0,0.00039452,8]
[394758888,1763929875777,-500.0,0.00039452,8]
[394758889,1763929875787,-500.0,0.00039452,8]
[394758890,1763929875796,-500.0,0.00039452,8]
[394758891,1763929875806,-500.0,0.00039452,8]
[394758892,1763929875815,-500.0,0.00039452,8]
[394758893,1763929875824,-896.91,0.00039452,8]
[394758894,1763929875834,-500.0,0.00039452,8]
[394758895,1763929875843,-694.55,0.00039452,8]
[394758896,1763929875853,-397.89267898,0.00039452,8]
[394758897,1763929875863,-500.0,0.00039452,8]
[394758898,1763929875873,-500.0,0.00039452,8]
[394758899,1763929875882,-523.40382942,0.00039452,8]
[394758900,1763929875892,-500.0,0.00039452,2]
[394758901,1763929875901,-500.0,0.00039452,8]
[394758902,1763929875911,-715.66,0.00039452,8]
[394758903,1763929875920,-500.0,0.00039452,8]
[394758904,1763929875930,-1000.0,0.00039452,8]
[394758905,1763929875939,-1953.68,0.00039452,8]
[394758906,1763929875950,-698.87,0.00039452,8]
[394758907,1763929875960,-592.61,0.00039452,8]
[394758908,1763929875969,-587.71,0.00039452,8]
[394758909,1763929875979,-500.0,0.00039452,8]
[394758910,1763929875989,-500.0,0.00039452,8]
[394758911,1763929875999,-500.0,0.00039452,8]
[394758912,1763929876009,-500.0,0.00039452,8]
[394758913,1763929876020,-500.0,0.00039452,8]
[394758914,1763929876029,-500.0,0.00039452,8]
[394758915,1763929876039,-1649.1,0.00039452,8]
[394758916,1763929876049,-500.0,0.00039452,8]
[394758917,1763929876058,-500.0,0.00039452,8]
[394758918,1763929876068,-589.17,0.00039452,8]
[394758919,1763929876077,-500.0,0.00039452,8]
[394758920,1763929876086,-951.49,0.00039452,8]
[394758921,1763929876095,-500.0,0.00039452,8]
[394758922,1763929876104,-503.68,0.00039452,8]
[394758923,1763929876114,-500.0,0.00039452,8]
[394758924,1763929876123,-500.0,0.00039452,8]
[394758925,1763929876132,-500.0,0.00039452,8]
[394758926,1763929876142,-500.0,0.00039452,8]
[394758927,1763929876153,-500.0,0.00039452,8]
[394758928,1763929876165,-500.0,0.00039452,8]
[394758929,1763929876174,-500.0,0.00039452,8]
[394758930,1763929876184,-525.49,0.00039452,8]
[394758931,1763929876193,-500.0,0.00039452,8]
[394758932,1763929876202,-500.0,0.00039452,8]
[394758933,1763929876212,-500.0,0.00039452,8]
[394758934,1763929876221,-524.73,0.00039452,8]
[394758935,1763929876230,-500.0,0.00039452,8]
[394758936,1763929876240,-500.0,0.00039452,8]
[394758937,1763929876249,-575.69,0.00039452,8]
[394758938,1763929876259,-500.0,0.00039452,8]
[394758939,1763929876268,-500.0,0.00039452,8]
[394758940,1763929876277,-500.0,0.00039452,8]
[394758941,1763929876287,-500.0,0.00039452,8]
[394758942,1763929876296,-500.0,0.00039452,8]
[394758943,1763929876305,-500.0,0.00039452,8]
[394758944,1763929876313,-500.0,0.00039452,8]
[394758945,1763929876322,-500.0,0.00039452,8]
[394758946,1763929876332,-500.0,0.00039452,8]
[394758947,1763929876341,-919.24,0.00039452,8]
[394758948,1763929876351,-306.64457094,0.00039452,8]
[394758949,1763929876360,-829.73,0.00039452,8]
[394758950,1763929876370,-867.96,0.00039452,8]
[394758951,1763929876379,-500.0,0.00039452,8]
[394758952,1763929876388,-759.86,0.00039452,8]
[394758953,1763929876397,-600.0,0.00039452,30]
[394758954,1763929876406,-1500.0,0.00039468,5]
[394758955,1763929876415,-239.84119403,0.00039498,30]
[394758956,1763929876424,-1148.0,0.00039522,20]
[394758957,1763929876434,-2000.0,0.00039527,3]
[394758958,1763929876443,-2000.0,0.00039527,3]
[394758959,1763929876452,-2000.0,0.00039527,3]
[394758960,1763929876461,-2000.0,0.00039527,3]
[394758961,1763929876470,-1000.0,0.00039559,7]
[394758962,1763929876479,-392.42851608,0.00039578,2]
[394758963,1763929876489,-479.01,0.00039581,2]
[394758964,1763929876498,-479.01,0.00039581,2]
[394758965,1763929876507,-500.0,0.00039588,2]
[394758966,1763929876518,-500.0,0.00039588,2]
[394758967,1763929876527,-418.0,0.00039588,2]
[394758968,1763929876536,-500.0,0.000396,120]
[394758969,1763929876546,-500.0,0.000396,120]
[394758970,1763929876555,-500.0,0.000396,120]
[394758971,1763929876564,-500.0,0.000396,120]
[394758972,1763929876573,-234.42085253,0.000396,120]
[394758973,1763929876582,-949.96,0.00039601,2]
[394758974,1763929876591,-957.08,0.00039607,2]
[394758975,1763929876600,-3049.26362325,0.00039626,2]
[394758976,1763929876610,-554.33256875,0.00039626,2]
[394758977,1763929876619,-1576.49173701,0.00039626,2]
[394758978,1763929876633,-789.99688143,0.00039626,8]
[394758979,1763929876643,-547.93,0.00039654,2]
[394758980,1763929876652,-300.0,0.00039678,2]
[394758981,1763929876662,-231.28369723,0.00039687,30]
[394758982,1763929876673,-396.0,0.000397,2]
[394758983,1763929876683,-168.35,0.000397,30]
[394758984,1763929876692,-222.03419501,0.00039716,2]
[394758985,1763929876705,-250.0,0.00039721,5]
[394758986,1763929876714,-500.0,0.00039725,2]
[394758987,1763929876724,-500.0,0.00039725,2]
[394758988,1763929876734,-418.0,0.00039725,2]
[394758989,1763929876743,-500.0,0.00039726,8]
[394758990,1763929876752,-547.44,0.00039726,8]
[394758991,1763929876762,-500.0,0.00039726,8]
[394758992,1763929876772,-537.05,0.00039726,8]
[394758993,1763929876781,-500.0,0.00039726,8]
[394758994,1763929876790,-500.0,0.00039726,8]
[394758995,1763929876799,-700.0,0.00039726,120]
[394758996,1763929876809,-500.0,0.00039726,8]
[394758997,1763929876819,-500.0,0.00039726,8]
[394758998,1763929876828,-500.0,0.00039726,8]
[394758999,1763929876838,-500.0,0.00039726,8]
[394759000,1763929876848,-500.0,0.00039726,8]
[394759001,1763929876858,-500.0,0.00039726,8]
[394759002,1763929876867,-500.0,0.00039726,8]
[394759003,1763929876877,-500.0,0.00039726,8]
[394759004,1763929876886,-300.02028934,0.00039726,8]
[394759005,1763929876896,-500.0,0.00039726,8]
[394759006,1763929876905,-764.13,0.00039726,8]
[394759007,1763929876915,-323.84235735,0.00039726,8]
[394759008,1763929876924,-500.0,0.00039726,8]
[394759009,1763929876933,-620.69,0.00039726,8]
[394759010,1763929876943,-500.0,0.00039726,8]
[394759011,1763929876957,-500.0,0.00039726,8]
[394759012,1763929876966,-500.0,0.00039726,8]
[394759013,1763929876975,-500.0,0.00039726,8]
[394759014,1763929876984,-500.0,0.00039726,8]
[394759015,1763929876994,-500.0,0.00039726,8]
[394759016,1763929877003,-500.0,0.00039726,8]
[394759017,1763929877012,-500.0,0.00039726,8]
[394759018,1763929877021,-500.0,0.00039726,8]
[394759019,1763929877031,-500.0,0.00039726,8]
[394759020,1763929877040,-500.0,0.00039726,8]
[394759021,1763929877050,-500.0,0.00039726,8]
[394759022,1763929877059,-500.0,0.00039726,8]
[394759023,1763929877068,-500.0,0.00039726,8]
[394759024,1763929877078,-369.17338281,0.00039726,8]
[394759025,1763929877087,-502.57,0.00039726,8]
[394759026,1763929877096,-734.1,0.00039726,8]
[394759027,1763929877104,-500.0,0.00039726,8]
[394759028,1763929877114,-500.0,0.00039726,8]
[394759029,1763929877123,-500.0,0.00039726,8]
[394759030,1763929877132,-500.0,0.00039726,8]
[394759031,1763929877141,-500.0,0.00039726,8]
[394759032,1763929877150,-655.26,0.00039726,8]
[394759033,1763929877159,-532.47,0.00039726,8]
[394759034,1763929877168,-500.0,0.00039726,8]
[394759035,1763929877176,-500.0,0.00039726,8]
[394759036,1763929877185,-646.36414018,0.00039726,8]
[394759037,1763929877194,-500.0,0.00039726,8]
[394759038,1763929877206,-500.0,0.00039726,8]
[394759039,1763929877214,-500.0,0.00039726,8]
[394759040,1763929877223,-628.85103276,0.00039726,8]
[394759041,1763929877232,-500.0,0.00039726,8]
[394759042,1763929877241,-500.0,0.00039726,8]
[394759043,1763929877251,-500.0,0.00039726,8]
[394759044,1763929877260,-518.25,0.00039726,8]
[394759045,1763929877269,-500.0,0.00039726,8]
[394759046,1763929877279,-1000.0,0.00039726,8]
[394759047,1763929877288,-1022.99,0.00039726,8]
[394759048,1763929877297,-500.0,0.00039726,8]
[394759049,1763929877307,-500.0,0.00039726,8]
[394759050,1763929877316,-903.62,0.00039726,8]
[394759051,1763929877325,-500.0,0.00039726,8]
[394759052,1763929877334,-500.0,0.00039726,8]
[394759053,1763929877343,-500.0,0.00039726,8]
[394759054,1763929877352,-500.0,0.00039726,8]
[394759055,1763929877362,-500.0,0.00039726,8]
[394759056,1763929877371,-506.26,0.00039726,8]
[394759057,1763929877380,-560.5,0.00039726,8]
[394759058,1763929877389,-580.95,0.00039726,8]
[394759059,1763929877398,-500.0,0.00039726,8]
[394759060,1763929877407,-500.0,0.00039726,8]
[394759061,1763929877416,-151.0,0.00039726,30]
[394759062,1763929877426,-500.0,0.00039726,8]
[394759063,1763929877436,-500.0,0.00039726,8]
[394759064,1763929877449,-500.0,0.00039726,8]
[394759065,1763929877459,-516.8,0.00039726,8]
[394759066,1763929877468,-500.0,0.00039726,8]
[394759067,1763929877477,-500.0,0.00039726,8]
[394759068,1763929877487,-500.0,0.00039726,8]
[394759069,1763929877496,-500.0,0.00039726,8]
[394759070,1763929877506,-500.0,0.00039726,8]
[394759071,1763929877515,-500.0,0.00039726,8]
[394759072,1763929877525,-500.0,0.00039726,8]
[394759073,1763929877535,-500.0,0.00039726,8]
[394759074,1763929877544,-500.0,0.00039726,8]
[394759075,1763929877554,-500.0,0.00039726,8]
[394759076,1763929877563,-500.0,0.00039726,8]
[394759077,1763929877573,-500.0,0.00039726,8]
[394759078,1763929877582,-529.7,0.00039726,8]
[394759079,1763929877592,-525.99,0.00039726,8]
[394759080,1763929877602,-500.0,0.00039726,8]
[394759081,1763929877611,-592.88,0.00039726,8]
[394759082,1763929877621,-539.32,0.00039726,8]
[394759083,1763929877635,-809.29,0.00039726,8]
[394759084,1763929877646,-500.0,0.00039726,8]
[394759085,1763929877656,-500.0,0.00039726,8]
[394759086,1763929877667,-568.18,0.00039726,8]
[394759087,1763929877678,-500.0,0.00039726,8]
[394759088,1763929877688,-500.0,0.00039726,8]
[394759089,1763929877700,-501.27,0.00039726,8]
[394759090,1763929877712,-500.0,0.00039726,8]
[394759091,1763929877721,-392.39431592,0.00039726,8]
[394759092,1763929877731,-500.0,0.00039726,8]
[394759093,1763929877741,-500.0,0.00039726,8]
[394759094,1763929877750,-500.0,0.00039726,8]
[394759095,1763929877760,-500.0,0.00039726,8]
[394759096,1763929877769,-500.0,0.00039726,8]
[394759097,1763929877778,-500.0,0.00039726,8]
[394759098,1763929877788,-500.0,0.00039726,8]
[394759099,1763929877797,-549.96,0.00039726,8]
[394759100,1763929877807,-500.0,0.00039726,8]
[394759101,1763929877816,-500.0,0.00039726,8]
[394759102,1763929877826,-500.0,0.00039726,8]
[394759103,1763929877836,-500.0,0.00039726,8]
[394759104,1763929877846,-500.0,0.00039726,8]
[394759105,1763929877857,-500.0,0.00039726,8]
[394759106,1763929877867,-639.91,0.00039726,8]
[394759107,1763929877877,-266.20823527,0.00039726,8]
[394759108,1763929877887,-584.27,0.00039726,8]
[394759109,1763929877897,-428.97573042,0.00039726,8]
[394759110,1763929877907,-702.21,0.00039726,8]
[394759111,1763929877917,-500.0,0.00039726,8]
[394759112,1763929877928,-500.0,0.00039726,8]
[394759113,1763929877938,-500.0,0.00039726,8]
[394759114,1763929877948,-592.73,0.00039726,8]
[394759115,1763929877958,-500.0,0.00039726,8]
[394759116,1763929877969,-500.0,0.00039726,8]
[394759117,1763929877978,-500.0,0.00039726,8]
[394759118,1763929877988,-500.0,0.00039726,8]
[394759119,1763929877998,-673.92,0.00039726,8]
[394759120,1763929878008,-500.0,0.00039726,8]
[394759121,1763929878018,-500.0,0.00039726,8]
[394759122,1763929878028,-500.0,0.00039726,8]
[394759123,1763929878038,-500.0,0.00039726,8]
[394759124,1763929878047,-500.0,0.00039726,8]
[394759125,1763929878057,-500.0,0.00039726,8]
[394759126,1763929878067,-500.0,0.00039726,8]
[394759127,1763929878077,-709.69,0.00039726,8]
[394759128,1763929878087,-500.0,0.00039726,8]
[394759129,1763929878097,-500.0,0.00039726,8]
[394759130,1763929878107,-151.0,0.00039726,120]
[394759131,1763929878117,-793.62,0.00039726,8]
[394759132,1763929878127,-500.0,0.00039726,8]
[394759133,1763929878138,-500.0,0.00039726,8]
[394759134,1763929878148,-500.0,0.00039726,8]
[394759135,1763929878159,-500.0,0.00039726,8]
[394759136,1763929878169,-500.0,0.00039726,8]
[394759137,1763929878179,-500.0,0.00039726,8]
[394759138,1763929878190,-500.0,0.00039726,8]
[394759139,1763929878201,-500.0,0.00039726,8]
[394759140,1763929878211,-500.0,0.00039726,8]
[394759141,1763929878221,-500.0,0.00039726,8]
[394759142,1763929878232,-500.0,0.00039726,8]
[394759143,1763929878242,-661.66,0.00039726,8]
[394759144,1763929878252,-624.86700551,0.00039726,8]
[394759145,1763929878262,-500.0,0.00039726,8]
[394759146,1763929878272,-500.0,0.00039726,8]
[394759147,1763929878283,-553.0,0.00039726,8]
[394759148,1763929878293,-481.71585599,0.00039726,8]
[394759149,1763929878304,-790.75,0.00039726,8]
[394759150,1763929878315,-500.0,0.00039726,8]
[394759151,1763929878326,-500.0,0.00039726,8]
[394759152,1763929878336,-500.0,0.00039726,8]
[394759153,1763929878346,-500.0,0.00039726,8]
[394759154,1763929878357,-500.0,0.00039726,8]
[394759155,1763929878367,-153.99741686,0.00039726,8]
[394759156,1763929878377,-636.72,0.00039726,8]
[394759157,1763929878387,-500.0,0.00039726,8]
[394759158,1763929878397,-576.8,0.00039726,8]
[394759159,1763929878407,-549.64,0.00039726,8]
[394759160,1763929878418,-1124.75,0.00039726,8]
[394759161,1763929878428,-500.0,0.00039726,8]
[394759162,1763929878438,-500.0,0.00039726,8]
[394759163,1763929878450,-500.0,0.00039726,8]
[394759164,1763929878460,-576.65,0.00039726,8]
[394759165,1763929878470,-500.0,0.00039726,8]
[394759166,1763929878480,-505.96,0.00039726,8]
[394759167,1763929878490,-505.6,0.00039726,8]
[394759168,1763929878500,-500.0,0.00039726,8]
[394759169,1763929878510,-500.0,0.00039726,8]
[394759170,1763929878521,-500.0,0.00039726,8]
[394759171,1763929878532,-500.0,0.00039726,8]
[394759172,1763929878543,-622.8,0.00039726,8]
[394759173,1763929878553,-500.0,0.00039726,8]
[394759174,1763929878563,-500.0,0.00039726,8]
[394759175,1763929878573,-500.0,0.00039726,8]
[394759176,1763929878584,-500.0,0.00039726,8]
[394759177,1763929878594,-847.47,0.00039726,8]
[394759178,1763929878604,-596.94,0.00039726,8]
[394759179,1763929878614,-500.0,0.00039726,8]
[394759180,1763929878625,-500.0,0.00039726,8]
[394759181,1763929878637,-500.0,0.00039726,8]
[394759182,1763929878647,-500.0,0.00039726,8]
[394759183,1763929878657,-500.0,0.00039726,8]
[394759184,1763929878667,-500.0,0.00039726,8]
[394759185,1763929878677,-500.0,0.00039726,8]
[394759186,1763929878687,-500.0,0.00039726,8]
[394759187,1763929878700,-500.0,0.00039726,8]
[394759188,1763929878712,-500.0,0.00039726,8]
[394759189,1763929878723,-500.0,0.00039726,8]
[394759190,1763929878733,-500.0,0.00039726,8]
[394759191,1763929878744,-500.0,0.00039726,8]
[394759192,1763929878754,-500.0,0.00039726,8]
[394759193,1763929878764,-500.0,0.00039726,8]
[394759194,1763929878775,-500.0,0.00039726,2]
[394759195,1763929878785,-500.0,0.00039726,8]
[394759196,1763929878796,-500.0,0.00039726,8]
[394759197,1763929878807,-500.0,0.00039726,8]
[394759198,1763929878818,-500.0,0.00039726,8]
[394759199,1763929878828,-628.98,0.00039726,8]
[394759200,1763929878839,-676.65,0.00039726,8]
[394759201,1763929878849,-500.0,0.00039726,8]
[394759202,1763929878859,-500.0,0.00039726,8]
[394759203,1763929878870,-500.0,0.00039726,8]
[394759204,1763929878880,-500.0,0.00039726,8]
[394759205,1763929878891,-500.0,0.00039726,8]
[394759206,1763929878901,-500.0,0.00039726,8]
[394759207,1763929878911,-500.0,0.00039726,8]
[394759208,1763929878921,-564.03,0.00039726,8]
[394759209,1763929878932,-500.0,0.00039726,8]
[394759210,1763929878942,-590.89,0.00039726,8]
[394759211,1763929878954,-513.68017088,0.00039726,8]
[394759212,1763929878964,-583.17661702,0.00039726,8]
[394759213,1763929878974,-859.66,0.00039726,8]
[394759214,1763929878984,-500.0,0.00039726,8]
[394759215,1763929878994,-500.0,0.00039726,8]
[394759216,1763929879005,-500.0,0.00039726,8]
[394759217,1763929879015,-500.0,0.00039726,8]
[394759218,1763929879028,-636.09159123,0.00039726,8]
[394759219,1763929879039,-500.0,0.00039726,8]
[394759220,1763929879050,-551.95116154,0.00039726,8]
[394759221,1763929879060,-500.0,0.00039726,8]
[394759222,1763929879070,-509.91,0.00039726,8]
[394759223,1763929879080,-500.0,0.00039726,8]
[394759224,1763929879090,-614.28,0.00039726,8]
[394759225,1763929879100,-500.0,0.00039726,8]
[394759226,1763929879112,-500.0,0.00039726,8]
[394759227,1763929879123,-500.0,0.00039726,8]
[394759228,1763929879132,-500.0,0.00039726,8]
[394759229,1763929879142,-500.0,0.00039726,8]
[394759230,1763929879152,-500.0,0.00039726,8]
[394759231,1763929879162,-151.0,0.00039726,120]
[394759232,1763929879171,-742.47,0.00039726,8]
[394759233,1763929879181,-500.0,0.00039726,8]
[394759234,1763929879192,-645.85,0.00039726,8]
[394759235,1763929879204,-500.0,0.00039726,8]
[394759236,1763929879215,-500.0,0.00039726,8]
[394759237,1763929879225,-500.0,0.00039726,8]
[394759238,1763929879234,-500.0,0.00039726,8]
[394759239,1763929879244,-1700.95,0.00039726,8]
[394759240,1763929879253,-500.0,0.00039726,8]
[394759241,1763929879263,-506.57296282,0.00039726,8]
[394759242,1763929879273,-500.0,0.00039726,8]
[394759243,1763929879283,-500.0,0.00039726,8]
[394759244,1763929879292,-500.0,0.00039726,8]
[394759245,1763929879302,-500.0,0.00039726,8]
[394759246,1763929879312,-500.0,0.00039726,8]
[394759247,1763929879322,-200.76279222,0.00039726,8]
[394759248,1763929879332,-550.41,0.00039726,8]
[394759249,1763929879342,-500.0,0.00039726,8]
[394759250,1763929879353,-780.84,0.00039726,8]
[394759251,1763929879363,-500.0,0.00039726,8]
[394759252,1763929879373,-801.52,0.00039726,8]
[394759253,1763929879384,-876.45,0.00039726,8]
[394759254,1763929879395,-500.0,0.00039726,8]
[394759255,1763929879405,-1111.77,0.00039726,8]
[394759256,1763929879414,-500.0,0.00039726,8]
[394759257,1763929879424,-562.07,0.00039726,8]
[394759258,1763929879434,-580.02,0.00039726,8]
[394759259,1763929879444,-1037.3,0.00039726,8]
[394759260,1763929879455,-500.0,0.00039726,8]
[394759261,1763929879465,-500.0,0.00039726,8]
[394759262,1763929879475,-507.54,0.00039726,8]
[394759263,1763929879485,-500.0,0.00039726,8]
[394759264,1763929879495,-500.0,0.00039726,8]
[394759265,1763929879506,-175.84936602,0.00039726,8]
[394759266,1763929879516,-655.94,0.00039726,8]
[394759267,1763929879526,-500.0,0.00039726,8]
[394759268,1763929879536,-515.32,0.00039726,8]
[394759269,1763929879546,-500.0,0.00039726,8]
[394759270,1763929879555,-500.0,0.00039726,8]
[394759271,1763929879565,-500.0,0.00039726,8]
[394759272,1763929879575,-500.0,0.00039726,8]
[394759273,1763929879584,-500.0,0.00039726,8]
[394759274,1763929879594,-500.0,0.00039726,8]
[394759275,1763929879604,-500.0,0.00039726,8]
[394759276,1763929879613,-724.73,0.00039726,8]
[394759277,1763929879623,-500.0,0.00039726,8]
[394759278,1763929879636,-699.98,0.00039726,8]
[394759279,1763929879646,-500.0,0.00039726,8]
[394759280,1763929879656,-500.0,0.00039726,8]
[394759281,1763929879670,-500.0,0.00039726,8]
[394759282,1763929879680,-500.0,0.00039726,8]
[394759283,1763929879689,-704.21,0.00039726,8]
[394759284,1763929879700,-1719.41,0.00039726,8]
[394759285,1763929879711,-500.0,0.00039726,8]
[394759286,1763929879721,-500.0,0.00039726,8]
[394759287,1763929879731,-500.0,0.00039726,8]
[394759288,1763929879742,-506.10344332,0.00039726,8]
[394759289,1763929879752,-500.0,0.00039726,8]
[394759290,1763929879762,-500.0,0.00039726,8]
[394759291,1763929879771,-307.07857999,0.00039726,8]
[394759292,1763929879781,-867.18,0.00039726,8]
[394759293,1763929879792,-742.38,0.00039726,8]
[394759294,1763929879802,-500.0,0.00039726,8]
[394759295,1763929879812,-500.0,0.00039726,8]
[394759296,1763929879822,-519.83,0.00039726,8]
[394759297,1763929879832,-500.0,0.00039726,8]
[394759298,1763929879842,-500.0,0.00039726,8]
[394759299,1763929879852,-500.0,0.00039726,8]
[394759300,1763929879862,-500.0,0.00039726,8]
[394759301,1763929879876,-500.0,0.00039726,8]
[394759302,1763929879887,-500.0,0.00039726,8]
[394759303,1763929879897,-500.0,0.00039726,8]
[394759304,1763929879907,-538.0,0.00039726,8]
[394759305,1763929879917,-500.0,0.00039726,8]
[394759306,1763929879927,-500.0,0.00039726,8]
[394759307,1763929879937,-500.0,0.00039726,8]
[394759308,1763929879947,-500.0,0.00039726,8]
[394759309,1763929879958,-764.19,0.00039726,8]
[394759310,1763929879968,-500.0,0.00039726,8]
[394759311,1763929879978,-500.0,0.00039726,8]
[394759312,1763929879988,-500.0,0.00039726,8]
[394759313,1763929879998,-500.0,0.00039726,8]
[394759314,1763929880008,-500.0,0.00039726,8]
[394759315,1763929880019,-500.0,0.00039726,8]
[394759316,1763929880028,-500.0,0.00039726,8]
[394759317,1763929880038,-771.84,0.00039726,8]
[394759318,1763929880049,-500.0,0.00039726,8]
[394759319,1763929880063,-500.0,0.00039726,8]
[394759320,1763929880074,-500.0,0.00039726,8]
[394759321,1763929880086,-500.0,0.00039726,8]
[394759322,1763929880097,-830.13,0.00039726,8]
[394759323,1763929880107,-500.0,0.00039726,8]
[394759324,1763929880117,-1259.23,0.00039726,8]
[394759325,1763929880128,-545.01,0.00039726,8]
[394759326,1763929880415,-500.0,0.00039726,8]
[394759327,1763929880432,-500.0,0.00039726,8]
[394759328,1763929880442,-513.17,0.00039726,8]
[394759329,1763929880452,-500.0,0.00039726,8]
[394759330,1763929880461,-500.0,0.00039726,8]
[394759331,1763929880471,-535.18,0.00039726,8]
[394759332,1763929880480,-500.0,0.00039726,8]